lending/lending_fUSD_20240130
["ID","MTS","AMOUNT","RATE_DAILY","PERIOD"]
[313002146,1706584242294,-176.73,0.00038096,2]
[313002147,1706584242304,-500.0,0.00038096,2]
[313002148,1706584242313,-500.0,0.00038096,2]
[313002149,1706584242323,-150.0,0.00038096,2]
[313002150,1706584242334,-508.8,0.00038135,2]
[313002151,1706584242344,-152.58347099,0.00038167,2]
[313002152,1706584242353,-2022.85087638,0.00038186,11]
[313002153,1706584242363,-250.0,0.00038274,2]
[313002154,1706584242373,-250.0,0.00038548,2]
[313002155,1706584242383,-176.73,0.00038644,2]
[313002156,1706584242392,-150.0,0.00038644,2]
[313002157,1706584242402,-3719.61839001,0.000388,2]
[313002158,1706584242411,-3719.61838993,0.000388,2]
[313002159,1706584242421,-3719.61838993,0.000388,2]
[313002160,1706584242431,-3719.61838993,0.000388,2]
[313002161,1706584242440,-3719.61838993,0.000388,2]
[313002162,1706584242449,-3719.61838993,0.000388,2]
[313002163,1706584242458,-3719.61838993,0.000388,2]
[313002164,1706584242467,-3719.61838993,0.000388,2]
[313002165,1706584242477,-3719.61838993,0.000388,2]
[313002166,1706584242486,-3719.61838993,0.000388,2]
[313002167,1706584242496,-3719.61838993,0.000388,2]
[313002168,1706584242505,-306.92392942,0.00038822,2]
[313002169,1706584242514,-3719.61838993,0.00038874,2]
[313002170,1706584242524,-735.36426628,0.0003888,2]
[313002171,1706584242533,-735.36426626,0.0003888,2]
[313002172,1706584242542,-735.36426626,0.0003888,2]
[313002173,1706584242555,-735.36426626,0.0003888,2]
[313002174,1706584242564,-735.36426626,0.0003888,2]
[313002175,1706584242573,-10778.82161259,0.0003897,2]
[313002176,1706584242583,-282.70130916,0.0003898,2]
[313002177,1706584242592,-978.60866905,0.00039,4]
[313002178,1706584242603,-1432.18317414,0.00039,2]
[313002179,1706584242614,-150.0,0.00039,2]
[313002180,1706584242624,-150.0,0.00039,2]
[313002181,1706584242634,-150.0,0.00039,2]
[313002182,1706584242643,-150.0,0.00039,2]
[313002183,1706584242652,-150.0,0.00039,2]
[313002184,1706584242661,-150.0,0.00039,2]
[313002185,1706584242671,-150.0,0.00039,2]
[313002186,1706584242681,-150.0,0.00039,2]
[313002187,1706584242690,-150.0,0.00039,2]
[313002188,1706584242699,-150.0,0.00039,2]
[313002189,1706584242709,-150.0,0.00039,2]
[313002190,1706584242719,-150.0,0.00039,2]
[313002191,1706584242729,-150.0,0.00039,2]
[313002192,1706584242738,-150.0,0.00039,2]
[313002193,1706584242747,-150.0,0.00039,2]
[313002194,1706584242756,-150.0,0.00039,2]
[313002195,1706584242765,-150.0,0.00039,2]
[313002196,1706584242775,-150.0,0.00039,2]
[313002197,1706584242785,-150.0,0.00039,2]
[313002198,1706584242793,-153.39062201,0.00039,2]
[313002199,1706584242803,-176.73,0.00039192,2]
[313002200,1706584242812,-150.0,0.00039192,2]
[313002201,1706584242821,-150.0,0.0003937,20]
[313002202,1706584242831,-1531.18165264,0.00039374,2]
[313002203,1706584242841,-1000.0,0.000395,2]
[313002204,1706584242850,-152.58347099,0.00039533,4]
[313002205,1706584242859,-1000.0,0.0003967,2]
[313002206,1706584242868,-1623.4973,0.0003967,2]
[313002207,1706584242879,-3498.9706,0.0003967,2]
[313002208,1706584242888,-176.73,0.0003974,2]
[313002209,1706584242897,-150.0,0.0003974,2]
[313002210,1706584242906,-317.63028237,0.000399,2]
[313002211,1706584242915,-93819.3039882,0.0003999,5]
[313002212,1706584242924,-222.17925689,0.0004,2]
[313002213,1706584242933,-4041.69149787,0.0004,30]
[313002214,1706584242943,-22084.46762997,0.0004,4]
[313002215,1706584242953,-439.19523994,0.0004,4]
[313002216,1706584242963,-570.51160774,0.0004,4]
[313002217,1706584242972,-180.59186097,0.0004,2]
[313002218,1706584242982,-2275.63385097,0.0004,4]
[313002219,1706584242991,-54412.27449646,0.0004,4]
[313002220,1706584243000,-155.0,0.0004,2]
[313002221,1706584243009,-713.38117008,0.0004,30]
[313002222,1706584243019,-207.22403962,0.0004,2]
[313002223,1706584243029,-3719.61838993,0.00040002,2]
[313002224,1706584243040,-255.98,0.000402,4]
[313002225,1706584243050,-255.98,0.000402,4]
[313002226,1706584243059,-255.98,0.000402,4]
[313002227,1706584243068,-255.98,0.000402,4]
[313002228,1706584243077,-255.98,0.000402,4]
[313002229,1706584243086,-255.98,0.000402,4]
[313002230,1706584243095,-255.98,0.000402,4]
[313002231,1706584243106,-255.98,0.000402,4]
[313002232,1706584243115,-255.98,0.000402,4]
[313002233,1706584243126,-255.98,0.000402,4]
[313002234,1706584243136,-255.98,0.000402,4]
[313002235,1706584243145,-255.98,0.000402,4]
[313002236,1706584243154,-255.98,0.000402,4]
[313002237,1706584243163,-255.98,0.000402,4]
[313002238,1706584243172,-255.98,0.000402,4]
[313002239,1706584243181,-255.98,0.000402,4]
[313002240,1706584243190,-255.98,0.000402,4]
[313002241,1706584243199,-255.98,0.000402,4]
[313002242,1706584243209,-255.98,0.000402,4]
[313002243,1706584243218,-255.98,0.000402,4]
[313002244,1706584243227,-176.73,0.00040288,2]
[313002245,1706584243236,-241.1657594,0.00040288,2]
[313002246,1706584243246,-200.0,0.00040333,2]
[313002247,1706584243255,-12099.50350565,0.00040373,19]
[313002248,1706584243264,-2783.37078952,0.00040373,19]
[313002249,1706584243274,-1794.29095212,0.00040373,19]
[313002250,1706584243282,-2059.59707867,0.00040373,19]
[313002251,1706584243292,-508.8,0.00040399,2]
[313002252,1706584243302,-800.0,0.00040418,2]
[313002253,1706584243310,-458.31718877,0.00040427,9]
[313002254,1706584243320,-735.36426626,0.00040595,3]
[313002255,1706584243329,-209.0,0.00040632,16]
[313002256,1706584243338,-167.87,0.00040678,2]
[313002257,1706584243350,-2022.85087638,0.00040729,14]
[313002258,1706584243359,-150.0,0.0004074,20]
[313002260,1706584243369,-222.84629183,0.00040791,2]
[313002261,1706584243379,-176.73,0.00040836,2]
[313002263,1706584243389,-152.58347099,0.000409,10]
[313002265,1706584243398,-1068.82286331,0.00040946,13]
[313002267,1706584243407,-1531.18165264,0.00040953,5]
[313002269,1706584243416,-150.0,0.00041096,2]
[313002271,1706584243425,-166.46,0.00041096,2]
[313002273,1706584243434,-3719.61838993,0.0004113,2]
[313002275,1706584243444,-176.73,0.00041384,2]
[313002276,1706584243453,-4420.2462111,0.00041794,2]
[313002277,1706584243463,-567.19274263,0.00041794,2]
[313002278,1706584243471,-757.32689692,0.00041794,2]
[313002279,1706584243481,-1220.79407061,0.00041918,120]
[313002280,1706584243489,-150.0,0.00041918,30]
[313002281,1706584243498,-306.794346,0.00041918,30]
[313002282,1706584243507,-176.73,0.00041932,2]
[313002283,1706584243516,-960.55,0.00042,2]
[313002284,1706584243526,-286.74856268,0.0004211,20]
[313002285,1706584243535,-150.0,0.00042177,2]
[313002286,1706584243544,-1000.0,0.000422,2]
[313002287,1706584243557,-3719.61838993,0.00042259,2]
[313002288,1706584243566,-152.58347099,0.00042267,15]
[313002289,1706584243576,-176.73,0.0004248,2]
[313002290,1706584243586,-1531.18165264,0.00042532,5]
[313002291,1706584243596,-508.8,0.00042662,2]
[313002292,1706584243605,-176.73,0.00043028,2]
[313002293,1706584243614,-150.0,0.00043259,2]
[313002294,1706584243624,-2022.85087638,0.00043272,18]
[313002295,1706584243634,-3719.61838993,0.00043387,2]
[313002296,1706584243644,-176.73,0.00043576,2]
[313002297,1706584243653,-152.58347099,0.00043633,20]
[313002298,1706584243663,-666.0,0.00043835,2]
[313002299,1706584243672,-407.07,0.00043836,15]
[313002300,1706584243682,-500.0,0.00043836,36]
[313002301,1706584243691,-200.97949855,0.00043836,30]
[313002302,1706584243700,-209.0,0.0004386,23]
[313002303,1706584243709,-458.31718877,0.00043918,11]
[313002304,1706584243719,-1531.18165264,0.00044111,5]
[313002305,1706584243728,-176.73,0.00044124,2]
[313002306,1706584243737,-150.0,0.0004434,2]
[313002307,1706584243747,-5138.8403575,0.000445,7]
[313002308,1706584243756,-3719.61838993,0.00044515,2]
[313002309,1706584243765,-176.73,0.00044672,2]
[313002310,1706584243774,-174.65,0.00044867,2]
[313002311,1706584243784,-1000.0,0.000449,2]
[313002312,1706584243793,-255.98,0.000449,5]
[313002313,1706584243802,-255.98,0.000449,5]
[313002314,1706584243811,-255.98,0.000449,5]
[313002315,1706584243820,-255.98,0.000449,5]
[313002316,1706584243829,-255.98,0.000449,5]
[313002317,1706584243838,-255.98,0.000449,5]
[313002318,1706584243847,-255.98,0.000449,5]
[313002319,1706584243856,-255.98,0.000449,5]
[313002320,1706584243866,-255.98,0.000449,5]
[313002321,1706584243874,-255.98,0.000449,5]
[313002322,1706584243885,-255.98,0.000449,5]
[313002323,1706584243894,-255.98,0.000449,5]
[313002324,1706584243904,-255.98,0.000449,5]
[313002325,1706584243913,-255.98,0.000449,5]
[313002326,1706584243922,-255.98,0.000449,5]
[313002327,1706584243931,-255.98,0.000449,5]
[313002328,1706584243940,-255.98,0.000449,5]
[313002329,1706584243949,-255.98,0.000449,5]
[313002330,1706584243959,-255.98,0.000449,5]
[313002331,1706584243968,-255.98,0.000449,5]
[313002332,1706584243977,-508.8,0.00044926,2]
[313002333,1706584243986,-309.73722913,0.00044999,2]
[313002334,1706584243995,-253.11560498,0.00045,4]
[313002335,1706584244005,-155.40486457,0.00045,3]
[313002336,1706584244186,-255.77617259,0.00045,30]
[313002337,1706584244196,-152.58347099,0.00045,25]
[313002338,1706584244204,-165.0,0.00045,2]
[313002339,1706584244214,-1679.0,0.00045,2]
[313002340,1706584244223,-5000.0,0.00045068,4]
[313002341,1706584244233,-176.73,0.0004522,2]
[313002342,1706584244241,-193.0,0.0004529,2]
[313002343,1706584244251,-215.0,0.00045385,2]
[313002344,1706584244260,-705.0,0.00045385,2]
[313002345,1706584244269,-1253.0,0.00045385,2]
[313002346,1706584244278,-287.935,0.00045385,2]
[313002347,1706584244287,-427.0,0.00045385,2]
[313002348,1706584244296,-236.0,0.00045385,2]
[313002349,1706584244305,-1000.0,0.00045385,2]
[313002350,1706584244314,-1940.0,0.00045385,2]
[313002351,1706584244323,-320.0,0.00045385,2]
[313002352,1706584244341,-1138.0,0.00045385,2]
[313002353,1706584244356,-178.245,0.00045385,2]
[313002354,1706584244365,-150.0,0.00045422,2]
[313002355,1706584244373,-3719.61838993,0.00045643,2]
[313002356,1706584244384,-1531.18165264,0.00045689,5]
[313002357,1706584244393,-202.47950254,0.00045768,2]
[313002358,1706584244402,-2022.85087638,0.00045815,21]
[313002359,1706584244411,-666.0,0.0004589,2]
[313002360,1706584244421,-152.58347099,0.00046367,30]
[313002361,1706584244430,-150.0,0.00046503,2]
[313002362,1706584244439,-152.56220176,0.0004655,2]
[313002363,1706584244448,-174.65,0.00046719,2]
[313002364,1706584244457,-3719.61838993,0.00046772,2]
[313002365,1706584244466,-178.16,0.00046839,10]
[313002366,1706584244475,-1333.67,0.00046849,120]
[313002367,1706584244484,-209.0,0.00047088,31]
[313002368,1706584244493,-508.8,0.0004719,2]
[313002369,1706584244503,-1531.18165264,0.00047268,5]
[313002370,1706584244512,-458.31718877,0.00047409,13]
[313002371,1706584244522,-499.92758234,0.00047409,4]
[313002372,1706584244531,-5000.0,0.000475,7]
[313002373,1706584244541,-407.07,0.00047572,15]
[313002374,1706584244553,-150.0,0.00047585,2]
[313002375,1706584244570,-1000.0,0.000477,2]
[313002376,1706584244579,-152.58347099,0.00047733,36]
[313002377,1706584244588,-151.013,0.00047798,54]
[313002378,1706584244598,-151.013,0.00047898,54]
[313002379,1706584244607,-738.99345245,0.000479,43]
[313002380,1706584244616,-666.0,0.00047945,2]
[313002381,1706584244625,-341.14,0.00047945,2]
[313002382,1706584244637,-210.0,0.00047965,2]
[313002383,1706584244646,-203.19637933,0.0004799,7]
[313002384,1706584244655,-200.0,0.0004799,7]
[313002385,1706584244665,-490.30433964,0.00047995,2]
[313002386,1706584244675,-620.63088492,0.00047996,4]
[313002387,1706584244684,-256.42327787,0.00047996,4]
[313002388,1706584244694,-422.34790847,0.00047997,2]
[313002389,1706584244703,-151.013,0.00047998,54]
[313002390,1706584244713,-150.0,0.00047999,7]
[313002391,1706584244723,-150.0,0.00047999,7]
[313002392,1706584244733,-150.0,0.00047999,7]
[313002393,1706584244742,-150.0,0.00047999,7]
[313002394,1706584244751,-1350361.55061506,0.00048,3]
[313002395,1706584244760,-494.59,0.00048,2]
[313002396,1706584244769,-60060.96110416,0.00048,14]
[313002397,1706584244785,-439939.03889584,0.00048,14]
[313002398,1706584244794,-800.0,0.00048,4]
[313002399,1706584244803,-151.0,0.00048,14]
[313002400,1706584244813,-151.0,0.00048,14]
[313002401,1706584244822,-175.806206,0.00048,14]
[313002402,1706584244831,-151.0,0.00048,14]
[313002403,1706584244842,-151.0,0.00048,14]
[313002404,1706584244853,-151.0,0.00048,14]
[313002405,1706584244862,-942.98487012,0.00048063,2]
[313002406,1706584244873,-1600.05194768,0.00048063,2]
[313002407,1706584244884,-204.34519985,0.00048063,4]
[313002408,1706584244894,-4449.96397081,0.00048063,4]
[313002409,1706584244904,-155.0,0.00048063,2]
[313002410,1706584244914,-236.25065606,0.00048064,2]
[313002411,1706584244924,-151.013,0.00048098,54]
[313002412,1706584244933,-522.0,0.000481,30]
[313002413,1706584244942,-200.0,0.00048111,10]
[313002414,1706584244951,-800.0,0.00048111,10]
[313002415,1706584244960,-151.013,0.00048198,54]
[313002416,1706584244969,-151.013,0.00048298,55]
[313002417,1706584244978,-1311.71700517,0.00048301,2]
[313002418,1706584244987,-207.814,0.00048334,2]
[313002419,1706584244996,-210.976,0.00048334,2]
[313002420,1706584245005,-949.0,0.00048334,2]
[313002421,1706584245015,-2022.85087638,0.00048357,24]
[313002422,1706584245024,-215.0,0.00048385,2]
[313002423,1706584245037,-700.195,0.00048385,2]
[313002424,1706584245046,-1253.0,0.00048385,2]
[313002425,1706584245055,-320.0,0.00048385,2]
[313002426,1706584245064,-1125.314,0.00048385,2]
[313002427,1706584245073,-151.013,0.00048398,55]
[313002428,1706584245082,-151.013,0.00048498,55]
[313002429,1706584245091,-224.49345088,0.00048509,4]
[313002430,1706584245100,-151.87707358,0.00048509,2]
[313002431,1706584245109,-174.65,0.0004857,2]
[313002432,1706584245118,-151.013,0.00048598,55]
[313002433,1706584245127,-84.08248494,0.00048606,10]
[313002434,1706584245245,-715.91751506,0.00048606,10]
[313002435,1706584245256,-738.99345243,0.0004865,44]
[313002436,1706584245265,-150.0,0.00048666,2]
[313002437,1706584245277,-151.013,0.00048698,55]
[313002438,1706584245286,-1311.71700517,0.0004873,2]
[313002439,1706584245295,-169.0,0.00048738,120]
[313002440,1706584245306,-151.0,0.00048738,120]
[313002441,1706584245317,-419.75,0.00048767,2]
[313002442,1706584245327,-419.75,0.00048767,2]
[313002443,1706584245339,-153.92,0.00048767,2]
[313002444,1706584245349,-150.0,0.00048767,2]
[313002445,1706584245359,-419.75,0.00048767,2]
[313002446,1706584245369,-419.75,0.00048767,2]
[313002447,1706584245378,-150.0,0.00048767,2]
[313002448,1706584245388,-419.75,0.00048767,2]
[313002449,1706584245397,-419.75,0.00048767,2]
[313002450,1706584245407,-419.75,0.00048767,2]
[313002451,1706584245416,-419.75,0.00048767,2]
[313002452,1706584245426,-419.75,0.00048767,2]
[313002453,1706584245437,-419.75,0.00048767,2]
[313002454,1706584245446,-1246.54,0.00048782,120]
[313002455,1706584245456,-5000.0,0.00048787,4]
[313002456,1706584245465,-151.013,0.00048798,55]
[313002457,1706584245476,-1531.18165264,0.00048847,5]
[313002458,1706584245486,-321.0,0.0004889,2]
[313002459,1706584245495,-151.013,0.00048898,55]
[313002460,1706584245504,-2000.0,0.00048899,4]
[313002461,1706584245514,-168.59445535,0.00048899,34]
[313002462,1706584245523,-410.0,0.000489,120]
[313002463,1706584245533,-5000.0,0.0004898,7]
[313002464,1706584245542,-4738.21677499,0.0004899,2]
[313002465,1706584245557,-12676.78322501,0.0004899,2]
[313002466,1706584245566,-10197.0,0.0004899,2]
[313002467,1706584245575,-400.0,0.00048996,120]
[313002468,1706584245585,-844.69581694,0.00048997,2]
[313002469,1706584245595,-150.01,0.00048998,2]
[313002470,1706584245604,-3305.32624244,0.00048998,2]
[313002471,1706584245614,-151.013,0.00048998,55]
[313002472,1706584245624,-946.88538598,0.00048999,4]
[313002473,1706584245635,-310.4579952,0.00048999,4]
[313002474,1706584245644,-1000.0,0.00048999,2]
[313002475,1706584245654,-1332.32388,0.00048999,44]
[313002476,1706584245663,-150.0,0.00048999,8]
[313002477,1706584245672,-150.0,0.00048999,8]
[313002478,1706584245681,-2205.6628401,0.00049,60]
[313002479,1706584245801,-522.051,0.00049,60]
[313002480,1706584246003,-277.4941285,0.000479,2]
[313002481,1706584246015,-2596.26077757,0.000479,2]
[313002482,1706584246032,-845.86348386,0.000479,2]
[313002483,1706584246041,-9164.46691614,0.00049,60]
[313002484,1706584246055,-565.85386333,0.00049,60]
[313002485,1706584246065,-300.0,0.00049,41]
[313002486,1706584246074,-20138.73381737,0.00049,4]
[313002488,1706584246086,-2058.24192669,0.00049,4]
[313002491,1706584246105,-2121.72781479,0.00049,4]
[313002497,1706584246172,-3068.79317736,0.00049,4]
[313002498,1706584246554,-735.36426626,0.00043421,5]
[313002499,1706584246563,-190.18470258,0.000479,2]
[313002500,1706584246573,-8141.79772458,0.00049,4]
[313002501,1706584246939,-1343.81113145,0.00049,4]
[313002502,1706584246969,-137254.39632546,0.00049,4]
[313002503,1706584246978,-209.62,0.00049,7]
[313002504,1706584246987,-543556.51311112,0.00049,2]
[313002505,1706584246999,-873.04,0.00049,2]
[313002506,1706584247346,-126888.09458561,0.00049,2]
[313002507,1706584247356,-28500.14752802,0.00049,7]
[313002508,1706584247365,-30000.0,0.00049,120]
[313002509,1706584247374,-500.0,0.00049,7]
[313002510,1706584247383,-2000.0,0.00049,7]
[313002511,1706584247392,-200.0,0.00049,7]
[313002512,1706584247401,-500.0,0.00049,30]
[313002513,1706584247410,-151.0,0.00049,14]
[313002514,1706584247420,-151.0,0.00049,14]
[313002515,1706584247429,-151.0,0.00049,14]
[313002516,1706584247439,-151.0,0.00049,14]
[313002517,1706584247448,-151.0,0.00049,14]
[313002518,1706584247457,-151.0,0.00049,14]
[313002519,1706584247465,-151.0,0.00049,14]
[313002520,1706584247475,-151.0,0.00049,14]
[313002521,1706584247484,-151.0,0.00049,14]
[313002522,1706584247493,-151.0,0.00049019,2]
[313002523,1706584247502,-459.24922343,0.00049026,2]
[313002524,1706584247511,-96828.2488044,0.00049026,2]
[313002525,1706584247520,-1631.8858806,0.00049026,2]
[313002526,1706584247530,-2637.9781415,0.00049026,2]
[313002527,1706584247540,-306.1661485,0.00049026,2]
[313002528,1706584247552,-1246.0,0.0004906,2]
[313002529,1706584247561,-150.0,0.00049068,30]
[313002530,1706584247572,-150.0,0.00049068,30]
[313002531,1706584247581,-150.0,0.00049068,30]
[313002532,1706584247590,-150.0,0.00049068,30]
[313002533,1706584247599,-150.0,0.00049068,30]
[313002534,1706584247608,-150.0,0.00049068,30]
[313002535,1706584247617,-150.0,0.00049068,30]
[313002536,1706584247626,-285.11379508,0.00049068,30]
[313002537,1706584247637,-176.5096394,0.00049068,30]
[313002538,1706584247646,-150.0,0.00049068,30]
[313002539,1706584247655,-152.57804618,0.00049068,30]
[313002540,1706584247664,-151.013,0.00049098,56]
[313002541,1706584247674,-152.58347099,0.000491,41]
[313002542,1706584247683,-150.0,0.00049153,30]
[313002543,1706584247693,-1311.71700517,0.00049186,2]
[313002544,1706584247702,-151.013,0.00049198,56]
[313002545,1706584247712,-150.0,0.00049238,30]
[313002546,1706584247722,-150.0,0.00049295,30]
[313002547,1706584247732,-151.013,0.00049298,56]
[313002548,1706584247741,-528.80565753,0.00049315,38]
[313002549,1706584247750,-166.0,0.00049315,15]
[313002550,1706584247760,-200.0,0.00049315,60]
[313002551,1706584247769,-150.0,0.00049324,30]
[313002552,1706584247778,-500.0,0.00049329,14]
[313002553,1706584247787,-300.0,0.00049372,2]
[313002554,1706584247796,-500.0,0.00049372,2]
[313002555,1706584247806,-500.0,0.00049372,2]
[313002556,1706584247815,-500.0,0.00049372,2]
[313002557,1706584247824,-500.0,0.00049372,2]
[313002558,1706584247833,-500.0,0.00049372,2]
[313002559,1706584247843,-151.013,0.00049398,56]
[313002560,1706584247853,-500.0,0.000494,2]
[313002561,1706584247862,-738.99345243,0.000494,45]
[313002562,1706584247872,-150.0,0.00049409,30]
[313002563,1706584248039,-150.0,0.00049409,30]
[313002564,1706584248048,-508.8,0.00049454,2]
[313002565,1706584248057,-150.0,0.00049457,30]
[313002566,1706584248066,-2000.0,0.0004949,7]
[313002567,1706584248076,-150.0,0.00049494,30]
[313002568,1706584248085,-151.013,0.00049498,58]
[313002569,1706584248093,-150.0,0.00049522,30]
[313002570,1706584248102,-150.0,0.00049579,30]
[313002571,1706584248112,-1311.71700517,0.0004958,2]
[313002572,1706584248121,-419.75,0.00049589,30]
[313002573,1706584248130,-611.74,0.00049589,30]
[313002574,1706584248140,-409.91,0.00049589,30]
[313002575,1706584248149,-151.013,0.00049598,58]
[313002576,1706584248158,-255.98,0.000496,6]
[313002577,1706584248169,-255.98,0.000496,6]
[313002578,1706584248179,-255.98,0.000496,6]
[313002579,1706584248188,-255.98,0.000496,6]
[313002580,1706584248197,-255.98,0.000496,6]
[313002581,1706584248206,-255.98,0.000496,6]
[313002582,1706584248216,-255.98,0.000496,6]
[313002583,1706584248226,-255.98,0.000496,6]
[313002584,1706584248234,-255.98,0.000496,6]
[313002585,1706584248244,-255.98,0.000496,6]
[313002586,1706584248253,-255.98,0.000496,6]
[313002587,1706584248263,-255.98,0.000496,6]
[313002588,1706584248272,-255.98,0.000496,6]
[313002589,1706584248281,-255.98,0.000496,6]
[313002590,1706584248290,-255.98,0.000496,6]
[313002591,1706584248299,-255.98,0.000496,6]
[313002592,1706584248309,-255.98,0.000496,6]
[313002593,1706584248318,-255.98,0.000496,6]
[313002594,1706584248327,-255.98,0.000496,6]
[313002595,1706584248336,-255.98,0.000496,6]
[313002596,1706584248346,-150.0,0.00049613,30]
[313002597,1706584248354,-150.0,0.00049664,30]
[313002598,1706584248364,-151.013,0.00049698,56]
[313002599,1706584248374,-1968.68595765,0.000497,61]
[313002600,1706584248384,-150.0,0.00049748,2]
[313002601,1706584248394,-150.0,0.0004975,30]
[313002602,1706584248404,-150.0,0.0004975,30]
[313002603,1706584248415,-150.0,0.0004975,30]
[313002604,1706584248424,-150.0,0.0004975,30]
[313002605,1706584248434,-184.523,0.0004976,120]
[313002606,1706584248444,-184.524,0.0004976,120]
[313002607,1706584248453,-500.0,0.0004977,30]
[313002608,1706584248462,-500.0,0.0004977,30]
[313002609,1706584248472,-500.0,0.0004977,30]
[313002610,1706584248482,-151.013,0.00049798,57]
[313002611,1706584248491,-540.10723113,0.000498,120]
[313002612,1706584248501,-154.15660913,0.000498,60]
[313002613,1706584248511,-500.0,0.00049801,14]
[313002614,1706584248521,-150.0,0.00049835,30]
[313002615,1706584248535,-302.0,0.00049843,4]
[313002616,1706584248544,-150.0,0.00049847,30]
[313002617,1706584248554,-150.0,0.00049847,30]
[313002618,1706584248563,-150.0,0.00049847,30]
[313002619,1706584248575,-151.013,0.00049898,58]
[313002620,1706584248584,-150.0,0.0004992,30]
[313002621,1706584248594,-150.0,0.00049977,30]
[313002622,1706584248605,-495.0,0.0004998,5]
[313002623,1706584248614,-472.82964146,0.0004998,5]
[313002624,1706584248624,-296.79531475,0.0004998,5]
[313002625,1706584248634,-731.14420719,0.0004998,5]
[313002626,1706584248643,-2000.0,0.00049985,7]
[313002627,1706584248653,-200.0,0.00049987,39]
[313002628,1706584248663,-258.0,0.0004999,2]
[313002629,1706584248673,-2054.27156723,0.00049997,120]
[313002630,1706584248682,-422.34790847,0.00049997,2]
[313002631,1706584248692,-151.013,0.00049998,58]
[313002632,1706584248701,-500.0,0.00049999,120]
[313002633,1706584248710,-252.04502671,0.00049999,120]
[313002634,1706584248719,-500.0,0.00049999,120]
[313002635,1706584248729,-500.0,0.00049999,120]
[313002636,1706584248739,-416.44387339,0.00049999,120]
[313002637,1706584248749,-500.0,0.00049999,120]
[313002638,1706584248758,-500.0,0.00049999,120]
[313002639,1706584248768,-500.0,0.00049999,120]
[313002640,1706584248777,-500.0,0.00049999,120]
[313002641,1706584248786,-500.0,0.00049999,120]
[313002642,1706584248795,-310.64190067,0.00049999,120]
[313002643,1706584248806,-500.0,0.00049999,120]
[313002644,1706584248816,-500.0,0.00049999,120]
[313002645,1706584248827,-500.0,0.00049999,120]
[313002646,1706584248837,-500.0,0.00049999,120]
[313002647,1706584248846,-214.48625694,0.00049999,120]
[313002648,1706584248856,-500.0,0.00049999,120]
[313002649,1706584248866,-500.0,0.00049999,120]
[313002650,1706584248875,-382.20091863,0.00049999,120]
[313002651,1706584248885,-500.0,0.00049999,120]
[313002652,1706584248894,-500.0,0.00049999,120]
[313002653,1706584248904,-273.89924883,0.00049999,120]
[313002654,1706584248913,-500.0,0.00049999,120]
[313002655,1706584248923,-500.0,0.00049999,120]
[313002656,1706584248933,-500.0,0.00049999,120]
[313002657,1706584248943,-500.0,0.00049999,120]
[313002658,1706584248952,-500.0,0.00049999,120]
[313002659,1706584248961,-500.0,0.00049999,120]
[313002660,1706584248971,-500.0,0.00049999,120]
[313002661,1706584248980,-500.0,0.00049999,120]